bitfinex/quotes_BTCUSD_20260307
["timestamp","ask_amount","ask_price","bid_price","bid_amount"]
[1772908386491,0.02754466,67589.0,67584.0,0.0002]
[1772908386822,0.10346576,67589.0,67585.0,0.00132]
[1772908387004,0.02754466,67588.0,67576.0,0.07418967]
[1772908387203,0.13101042,67588.0,67579.0,0.00132]
[1772908387592,0.02754466,67588.0,67576.0,0.07418967]
[1772908387923,0.07402916,67590.0,67581.0,0.07398529]
[1772908388708,0.02901278,67589.0,67581.0,0.07398529]
[1772908390524,0.10298936,67589.0,67581.0,0.07398529]
[1772908391031,0.10298936,67589.0,67581.0,0.07418529]
[1772908393332,0.10298936,67589.0,67581.0,0.0002]
[1772908393539,0.02901278,67585.0,67569.0,0.0002]
[1772908393761,0.10346576,67582.0,67570.0,0.07399733]
[1772908393965,0.13247854,67579.0,67571.0,0.00132]
[1772908394125,0.02901278,67578.0,67571.0,0.00132]
[1772908394319,0.02901278,67578.0,67572.0,0.00132]
[1772908394665,0.07398919,67578.0,67569.0,0.0002]
[1772908394876,0.10346576,67577.0,67570.0,0.00132]
[1772908395213,0.10346576,67577.0,67571.0,0.00132]
[1772908395559,0.10300197,67578.0,67571.0,0.00132]
[1772908395765,0.02901278,67578.0,67571.0,0.00132]
[1772908395988,0.07398857,67579.0,67571.0,0.00132]
[1772908396747,0.10300135,67579.0,67571.0,0.00132]
[1772908399075,0.07398857,67579.0,67568.0,0.0002]
[1772908399285,0.02901278,67577.0,67569.0,0.00132]
[1772908399571,0.07398857,67579.0,67569.0,0.00132]
[1772908399572,0.13247854,67575.0,67569.0,0.00132]
[1772908399725,0.13247854,67575.0,67566.0,0.0742017]
[1772908399921,0.07398857,67579.0,67570.0,0.00132]
[1772908400113,0.02901278,67577.0,67570.0,0.00132]
[1772908400384,0.02901278,67576.0,67570.0,0.00132]
[1772908401918,0.07399186,67575.0,67568.0,0.00132]
[1772908402095,0.13247854,67574.0,67568.0,0.00132]
[1772908402459,0.02901278,67573.0,67568.0,0.00132]
[1772908402665,0.13247854,67572.0,67566.0,0.0002]
[1772908402869,0.07399186,67575.0,67566.0,0.0002]
[1772908403088,0.07399186,67575.0,67567.0,0.00132]
[1772908403272,0.02901278,67573.0,67567.0,0.00132]
[1772908403476,0.10346576,67573.0,67568.0,0.00132]
[1772908403692,0.10346576,67574.0,67568.0,0.00132]
[1772908403909,0.02901278,67571.0,67568.0,0.00132]
[1772908404411,0.07399295,67574.0,67568.0,0.00132]
[1772908404642,0.10346576,67572.0,67568.0,0.00132]
[1772908404799,0.10346576,67571.0,67563.0,0.0002]
[1772908405011,0.02901278,67570.0,67564.0,0.00132]
[1772908405734,0.10346576,67569.0,67565.0,0.00132]
[1772908405915,0.13247854,67569.0,67565.0,0.00132]
[1772908406097,0.02901278,67569.0,67566.0,0.00132]
[1772908406644,0.07399894,67569.0,67566.0,0.00132]
[1772908406844,0.07399894,67569.0,67566.0,0.0014405]
[1772908406845,0.02901278,67567.0,67566.0,0.0014405]
[1772908407048,0.10301172,67569.0,67566.0,0.00132]
[1772908407945,0.07399894,67569.0,67566.0,0.00132]
[1772908408625,0.07399624,67571.0,67566.0,0.00132]
[1772908408839,0.02901278,67570.0,67566.0,0.00132]
[1772908409246,0.02901278,67569.0,67566.0,0.00132]
[1772908409624,0.02901278,67570.0,67566.0,0.00132]
[1772908410389,0.07399624,67571.0,67566.0,0.00132]
[1772908410565,0.02901278,67571.0,67566.0,0.00132]
[1772908410768,0.07398857,67578.0,67566.0,0.00132]
[1772908410769,0.02901278,67569.0,67566.0,0.00132]
[1772908410993,0.02901278,67575.0,67566.0,0.00132]
[1772908411498,0.02901278,67574.0,67566.0,0.00132]
[1772908412952,0.07399405,67573.0,67566.0,0.00132]
[1772908413652,0.20702624,67573.0,67566.0,0.00132]
[1772908414268,0.20702624,67573.0,67566.0,0.00152]
[1772908415522,0.02901278,67571.0,67564.0,0.00132]
[1772908415658,0.07399405,67573.0,67564.0,0.00132]
[1772908415659,0.02901278,67567.0,67564.0,0.00132]
[1772908415845,0.02901278,67566.0,67564.0,0.00132]
[1772908416625,0.02901278,67564.0,67553.0,0.07401541]
[1772908416775,0.10401941,67562.0,67553.0,0.07401586]
[1772908416977,0.13303219,67562.0,67553.0,0.07401586]
[1772908417178,0.02901278,67562.0,67553.0,0.07533586]
[1772908417475,0.02901278,67559.0,67550.0,0.07541909]
[1772908417681,0.07400719,67561.0,67550.0,0.07541909]
[1772908418222,0.07400719,67561.0,67551.0,0.00132]
[1772908419248,0.07400719,67561.0,67550.0,0.0014]
[1772908419525,0.07400719,67562.0,67544.0,0.0740258]
[1772908419526,0.10401941,67554.0,67544.0,0.0740258]
[1772908419736,0.02707394,67551.0,67550.0,0.00132]
[1772908419943,0.02707394,67551.0,67543.0,0.07402648]
[1772908420145,0.02707394,67551.0,67546.0,0.00132]
[1772908420305,0.02707394,67551.0,67547.0,0.00132]
[1772908420661,0.02707394,67551.0,67537.0,0.02748516]
[1772908420662,0.13043702,67550.0,67524.0,0.0002367]
[1772908420813,0.00010689,67551.0,67526.0,0.07404555]
[1772908421149,0.00132,67550.0,67546.0,0.0002]
[1772908421307,0.02839394,67550.0,67546.0,0.0002]
[1772908421504,0.02839394,67550.0,67539.0,0.0002]
[1772908421719,0.10241343,67550.0,67539.0,0.0002]
[1772908421948,0.02707394,67549.0,67539.0,0.0002]
[1772908422531,0.10401941,67548.0,67530.0,0.07404072]
[1772908422728,0.10401941,67544.0,67527.0,0.07404445]
[1772908423085,0.02707394,67543.0,67528.0,0.00132]
[1772908423254,0.02707394,67543.0,67518.0,0.00132]
[1772908423255,0.10401941,67540.0,67518.0,0.00132]
[1772908423420,0.10401941,67537.0,67519.0,0.07405322]
[1772908423617,0.02707394,67536.0,67519.0,0.07405322]
[1772908423804,0.02707394,67536.0,67520.0,0.02748516]
[1772908424215,0.02707394,67536.0,67521.0,0.00132]
[1772908424781,0.07403321,67538.0,67522.0,0.02748516]
[1772908424945,0.10110715,67538.0,67522.0,0.02748516]
[1772908425144,0.02707394,67537.0,67522.0,0.02748516]
[1772908425545,0.10401941,67534.0,67520.0,0.07405166]
[1772908425746,0.02707394,67533.0,67520.0,0.03710484]
[1772908425948,0.02707394,67533.0,67521.0,0.00132]
[1772908426145,0.02707394,67533.0,67522.0,0.00132]
[1772908426465,0.02707394,67533.0,67523.0,0.00132]
[1772908427764,0.10111264,67533.0,67518.0,0.10153838]
[1772908427964,0.10111264,67533.0,67523.0,0.00132]
[1772908428168,0.10111264,67533.0,67518.0,0.10153838]
[1772908428368,0.10111264,67533.0,67523.0,0.00132]
[1772908428567,0.02707394,67532.0,67522.0,0.00132]
[1772908428732,0.02707394,67532.0,67518.0,0.07008734]
[1772908428948,0.02707394,67532.0,67517.0,0.07405322]
[1772908428949,0.02707394,67530.0,67521.0,0.00132]
[1772908429484,0.02707394,67530.0,67519.0,0.00132]
[1772908430112,0.02707394,67530.0,67519.0,0.00144053]
[1772908430316,0.07403809,67533.0,67519.0,0.00012053]
[1772908430513,0.02707394,67532.0,67519.0,0.00144053]
[1772908430828,0.0740336,67537.0,67521.0,0.02748516]
[1772908431116,0.0753536,67537.0,67525.0,0.02748516]
[1772908431275,0.0740336,67537.0,67525.0,0.02748516]
[1772908431675,0.0740336,67537.0,67526.0,0.00132]
[1772908432131,0.10110754,67537.0,67526.0,0.00132]
[1772908432625,0.02707394,67536.0,67526.0,0.00132]
[1772908432772,0.02707394,67536.0,67519.0,0.00012053]
[1772908432990,0.0740336,67537.0,67520.0,0.02748516]
[1772908432991,0.00132,67535.0,67520.0,0.02748516]
[1772908433186,0.02839394,67535.0,67522.0,0.02748516]
[1772908433499,0.02707394,67535.0,67520.0,0.0990945]
[1772908433715,0.02707394,67535.0,67521.0,0.02748516]
[1772908434088,0.10111022,67535.0,67522.0,0.07404993]
[1772908434288,0.07403628,67535.0,67523.0,0.02748516]
[1772908434532,0.07403628,67535.0,67524.0,0.00132]
[1772908435437,0.10111022,67535.0,67524.0,0.00132]
[1772908435642,0.10111022,67535.0,67525.0,0.0002]
[1772908437498,0.07403628,67535.0,67525.0,0.0002]
[1772908437699,0.10111022,67535.0,67525.0,0.0002]
[1772908438464,0.07403628,67535.0,67525.0,0.0002]
[1772908438688,0.02707394,67534.0,67525.0,0.0002]
[1772908440173,0.02707394,67534.0,67525.0,0.00152]
[1772908440391,0.10111172,67534.0,67525.0,0.0002]
[1772908440760,0.02707394,67533.0,67525.0,0.0002]
[1772908442889,0.07403897,67532.0,67525.0,0.0002]
[1772908443701,0.07403897,67532.0,67519.0,0.00144053]
[1772908443702,0.0267159,67531.0,67519.0,0.00144053]
[1772908444079,0.0267159,67531.0,67519.0,0.07549369]
[1772908445347,0.07404116,67530.0,67519.0,0.07549369]
[1772908447726,0.07404116,67531.0,67519.0,0.00144053]
[1772908447912,0.10332432,67527.0,67513.0,0.00132]
[1772908448116,0.10332432,67527.0,67498.0,0.07407542]
[1772908448117,0.02716874,67525.0,67501.0,0.07407197]
[1772908448303,0.02716874,67520.0,67500.0,0.07548676]
[1772908448504,0.02716874,67518.0,67500.0,0.07548676]
[1772908448805,0.02716874,67517.0,67500.0,0.07548676]
[1772908449163,0.14595684,67522.0,67500.0,0.07527346]
[1772908449362,0.02848874,67521.0,67501.0,0.10336336]
[1772908449563,0.10332432,67525.0,67475.0,0.0004]
[1772908449564,0.02716874,67510.0,67475.0,0.0004]
[1772908449780,0.02716874,67510.0,67479.0,0.17773943]
[1772908449781,0.02716874,67499.0,67479.0,0.17773943]
[1772908450008,0.02716874,67499.0,67485.0,0.00132]
[1772908450311,0.02716874,67498.0,67486.0,0.00132]
[1772908450518,0.02716874,67498.0,67484.0,1e-08]
[1772908450721,0.26282548,67505.0,67485.0,0.00132]
[1772908450869,0.04377782,67500.0,67485.0,0.00132]
[1772908451068,0.02716874,67499.0,67485.0,0.00132]
[1772908451267,0.10332432,67498.0,67485.0,0.00132]
[1772908451473,0.02716874,67497.0,67485.0,0.00132]
[1772908451689,0.02716874,67495.0,67485.0,0.00132]
[1772908452367,0.02716874,67495.0,67481.0,0.10336336]
[1772908452501,0.02716874,67495.0,67486.0,0.00132]
[1772908452701,0.00104141,67479.0,67477.0,0.07409866]
[1772908452915,0.02716874,67491.0,67477.0,0.07409866]
[1772908453119,0.02716874,67491.0,67478.0,0.00132]
[1772908453639,0.07407846,67496.0,67484.0,0.0002]
[1772908453820,0.07419874,67496.0,67485.0,0.00132]
[1772908454234,0.02716874,67495.0,67485.0,0.00132]
[1772908455007,0.02716874,67495.0,67486.0,0.00132]
[1772908455222,0.02716874,67494.0,67477.0,0.07429881]
[1772908455447,0.02716874,67494.0,67479.0,0.10336336]
[1772908455755,0.07408175,67493.0,67481.0,0.07409493]
[1772908455959,0.07408175,67493.0,67482.0,0.10336336]
[1772908456519,0.07408175,67493.0,67483.0,0.00132]
[1772908456730,0.07393175,67493.0,67483.0,0.00132]
[1772908456935,0.06393175,67493.0,67483.0,0.00132]
[1772908457131,0.09110049,67493.0,67481.0,0.07409493]
[1772908457337,0.09110049,67493.0,67482.0,0.00132]
[1772908457548,0.06393175,67493.0,67482.0,0.00132]
[1772908457820,0.07408395,67491.0,67483.0,0.07409273]
[1772908458020,0.02716874,67490.0,67483.0,0.07409273]
[1772908458224,0.07408395,67491.0,67483.0,0.07409273]
[1772908458958,0.07408395,67491.0,67484.0,0.00132]
[1772908459420,0.07407466,67500.0,67485.0,0.10336336]
[1772908459734,0.04391215,67510.0,67491.0,0.07408395]
[1772908459735,0.07406529,67508.0,67491.0,0.07408395]
[1772908459872,0.02716874,67507.0,67492.0,0.00132]
[1772908460663,0.02716874,67507.0,67493.0,0.00132]
[1772908460998,0.02716874,67507.0,67494.0,0.00132]
[1772908461379,0.00575,67511.0,67496.0,0.10336336]
[1772908461586,0.07981211,67511.0,67499.0,0.00896925]
[1772908461752,0.10698085,67511.0,67498.0,0.07407626]
[1772908461954,0.10332432,67510.0,67492.0,0.07408187]
[1772908462253,0.02716874,67507.0,67493.0,0.00132]
[1772908462952,0.07981211,67511.0,67493.0,0.00132]
[1772908463168,0.07981211,67511.0,67497.0,0.10336336]
[1772908463332,0.07981211,67511.0,67497.0,0.11241363]
[1772908463723,0.07981211,67511.0,67498.0,0.07407626]
[1772908463916,0.10698085,67511.0,67499.0,0.00132]
[1772908464338,0.10698085,67511.0,67499.0,0.10468336]
[1772908464339,0.00575,67511.0,67499.0,0.10468336]
[1772908464765,0.0798121,67511.0,67499.0,0.10468336]
[1772908465067,0.00575,67511.0,67499.0,0.10468336]
[1772908465274,0.07425835,67533.0,67499.0,0.00132]
[1772908465479,0.07404243,67529.0,67504.0,0.10336336]
[1772908465708,0.07404597,67526.0,67507.0,0.00847121]
[1772908465975,0.07404014,67531.0,67507.0,0.00847121]
[1772908465976,0.07404274,67529.0,67510.0,0.00847121]
[1772908466176,0.07404274,67529.0,67514.0,0.00847121]
[1772908466324,0.07404274,67529.0,67515.0,0.10336336]
[1772908466530,0.07404274,67529.0,67511.0,0.00132]
[1772908466531,0.07404274,67529.0,67517.0,0.10336336]
[1772908466762,0.07404274,67529.0,67518.0,0.10468336]
[1772908466963,0.07416338,67529.0,67518.0,0.10468336]
[1772908467786,0.02716874,67526.0,67508.0,0.07406419]
[1772908467988,0.02716874,67526.0,67509.0,0.16128]
[1772908468195,0.02716874,67526.0,67509.0,0.26464336]
[1772908468400,0.07403897,67532.0,67511.0,0.00507456]
[1772908468549,0.07403897,67532.0,67514.0,0.10336336]
[1772908468758,0.07403897,67532.0,67517.0,0.00507456]
[1772908468951,0.07403897,67532.0,67517.0,0.10843792]
[1772908469805,0.07404116,67530.0,67518.0,0.00132]
[1772908469962,0.02716874,67529.0,67519.0,0.00132]
[1772908470297,0.02716874,67529.0,67514.0,0.0740578]
[1772908470531,0.02716874,67529.0,67515.0,0.00132]
[1772908470934,0.02716874,67529.0,67514.0,0.0740578]
[1772908470935,0.02716874,67529.0,67516.0,0.00132]
[1772908472677,0.07404335,67528.0,67516.0,0.07405542]
[1772908472903,0.02716874,67527.0,67517.0,0.00132]
[1772908473850,0.02716874,67527.0,67518.0,0.00132]
[1772908474945,0.02716874,67527.0,67511.0,0.09725982]
[1772908474946,0.07404555,67526.0,67511.0,0.09725982]
[1772908475214,0.02716874,67525.0,67512.0,0.00132]
[1772908476226,0.02716874,67525.0,67513.0,0.00132]
[1772908481472,0.07404774,67524.0,67514.0,0.07405871]
[1772908481888,0.02489202,67523.0,67515.0,0.00132]
[1772908482654,0.02489202,67523.0,67514.0,0.07405871]
[1772908482858,0.02489202,67523.0,67515.0,0.00132]
[1772908483467,0.02489202,67523.0,67516.0,0.07405651]
[1772908484087,0.09894104,67523.0,67515.0,0.07537662]
[1772908484672,0.00022001,67540.0,67515.0,0.07537662]
[1772908484845,0.07425813,67533.0,67518.0,0.10824872]
[1772908485045,0.09915015,67533.0,67518.0,0.10527637]
[1772908485317,0.07425813,67533.0,67518.0,0.10527637]
[1772908485491,0.09893209,67531.0,67519.0,0.07405322]
[1772908486724,0.09893209,67531.0,67520.0,0.00132]
[1772908487775,0.07404007,67531.0,67521.0,0.07405103]
[1772908487979,0.02489202,67530.0,67521.0,0.07405103]
[1772908488777,0.07404007,67532.0,67521.0,0.07405103]
[1772908489821,0.07404007,67532.0,67520.0,0.18064741]
[1772908489822,0.02489202,67531.0,67520.0,0.07537213]
[1772908490025,0.02489202,67529.0,67520.0,0.07405213]
[1772908490342,0.02489202,67529.0,67518.0,0.06479883]
[1772908490489,0.02489202,67529.0,67521.0,0.00132]
[1772908490690,0.02489202,67529.0,67516.0,0.0002]
[1772908490892,0.10074091,67526.0,67517.0,0.00132]
[1772908491192,0.02489202,67525.0,67518.0,0.00132]
[1772908491967,0.07404691,67525.0,67519.0,0.07405322]
[1772908492167,0.07404691,67525.0,67517.0,0.07405496]
[1772908492360,0.07404691,67525.0,67520.0,0.00132]
[1772908493310,0.09893893,67525.0,67520.0,0.00132]
[1772908493511,0.09893893,67525.0,67521.0,0.00132]
[1772908494747,0.07404691,67525.0,67521.0,0.00132]
[1772908495081,0.02489202,67524.0,67521.0,0.00132]
[1772908496069,0.07404664,67527.0,67521.0,0.00132]
[1772908497086,0.02489202,67526.0,67521.0,0.00132]
[1772908498932,0.09893765,67526.0,67521.0,0.00132]
[1772908499519,0.09893765,67526.0,67521.0,0.00152]
[1772908500723,0.07404563,67526.0,67521.0,0.00152]
[1772908500935,0.02489202,67525.0,67521.0,0.00152]
[1772908501137,0.02489202,67525.0,67522.0,0.00132]
[1772908502061,0.14633659,67528.0,67522.0,0.00132]
[1772908502266,0.07426131,67530.0,67522.0,0.00132]
[1772908502695,0.07426131,67530.0,67522.0,0.07536971]
[1772908502897,0.07426131,67530.0,67522.0,0.07404971]
[1772908503115,0.07426131,67530.0,67523.0,0.00132]
[1772908505812,0.00022001,67534.0,67523.0,0.00132]
[1772908505813,0.07402387,67546.0,67524.0,0.09885983]
[1772908506144,0.02370655,67545.0,67524.0,0.09885983]
[1772908507216,0.07402582,67544.0,67526.0,0.09885983]
[1772908507819,0.09773185,67545.0,67526.0,0.09885983]
[1772908507820,0.0740253,67545.0,67526.0,0.09885983]
[1772908507948,0.07424266,67547.0,67526.0,0.09885983]
[1772908508145,0.00022001,67547.0,67526.0,0.09885983]
[1772908508368,0.00022001,67545.0,67526.0,0.09885983]
[1772908508570,0.00022001,67548.0,67525.0,0.07404664]
[1772908508772,0.00022001,67548.0,67526.0,0.09885983]
[1772908509160,0.00022001,67548.0,67528.0,0.09885983]
[1772908509352,0.00022001,67548.0,67530.0,0.09885983]
[1772908509770,0.07424173,67548.0,67530.0,0.09885983]
[1772908509980,0.02370655,67546.0,67531.0,0.2536]
[1772908510579,0.02370655,67546.0,67532.0,0.09885983]
[1772908510814,0.02370655,67546.0,67544.0,0.00015]
[1772908511033,0.02370655,67546.0,67545.0,0.00132]
[1772908511819,0.09773017,67546.0,67545.0,0.00132]
[1772908512023,0.07402362,67546.0,67533.0,0.07403727]
[1772908512232,0.02370655,67544.0,67534.0,0.00132]
[1772908512822,0.07142367,67546.0,67534.0,0.10017983]
[1772908513250,0.07142367,67546.0,67535.0,0.07403568]
[1772908513451,0.0740228,67547.0,67535.0,0.07403568]
[1772908513650,0.0740228,67547.0,67535.0,0.17289551]
[1772908513884,0.00022001,67548.0,67535.0,0.07403568]
[1772908514184,0.0012,67550.0,67536.0,0.09885983]
[1772908514338,0.00132059,67550.0,67536.0,0.09885983]
[1772908515291,0.00132059,67550.0,67536.0,0.09985983]
[1772908515521,0.00132059,67550.0,67538.0,0.09885983]
[1772908516010,0.0015406,67550.0,67538.0,0.09885983]
[1772908517818,0.0015406,67550.0,67539.0,0.0740313]
[1772908518015,0.0015406,67550.0,67540.0,0.00132]
[1772908519807,0.02370655,67549.0,67541.0,0.00132]
[1772908520579,0.02370655,67547.0,67525.0,0.16636664]
[1772908520897,0.1025981,67543.0,67526.0,0.1612]
[1772908521100,0.1025981,67539.0,67527.0,0.00132]
[1772908521295,0.02370655,67536.0,67525.0,0.07404664]
[1772908521499,0.02370655,67536.0,67526.0,0.00132]
[1772908521840,0.02370655,67534.0,67527.0,0.00132]
[1772908522006,0.02370655,67534.0,67528.0,0.00132]
[1772908522348,0.02370655,67534.0,67529.0,0.00132]
[1772908522553,0.02370655,67534.0,67530.0,0.00132]
[1772908522722,0.02370655,67534.0,67531.0,0.00132]
[1772908522923,0.02370655,67534.0,67532.0,0.00132]
[1772908523142,0.02370655,67534.0,67533.0,0.00132]
[1772908523738,0.09774333,67534.0,67533.0,0.00132]
[1772908526060,0.07403678,67534.0,67521.0,0.00019848]
[1772908526385,0.02370655,67533.0,67522.0,0.00132]
[1772908526999,0.02370655,67533.0,67523.0,0.00132]
[1772908527216,0.02370655,67533.0,67524.0,0.00132]
[1772908528126,0.07403897,67532.0,67524.0,0.07536726]
[1772908528269,0.09774552,67532.0,67524.0,0.07536726]
[1772908529081,0.09808872,67532.0,67524.0,0.07536726]
[1772908529894,0.02404975,67532.0,67524.0,0.07536726]
[1772908530806,0.09808891,67532.0,67524.0,0.07536726]
[1772908531967,0.09808891,67532.0,67524.0,0.07404726]
[1772908532180,0.02404975,67532.0,67525.0,0.00132]
[1772908532366,0.02404975,67532.0,67524.0,0.07404726]
[1772908532590,0.02404975,67532.0,67525.0,0.00132]
[1772908532740,0.07402574,67545.0,67525.0,0.17326983]
[1772908532948,0.07424947,67541.0,67526.0,0.09790357]
[1772908533796,0.02370655,67540.0,67525.0,0.07404626]
[1772908534141,0.02370655,67538.0,67526.0,0.00132]
[1772908536666,0.07403349,67537.0,67527.0,0.07404445]
[1772908537902,0.02370655,67536.0,67527.0,0.07404445]
[1772908538309,0.19089496,67552.0,67528.0,0.05997745]
[1772908538310,0.07429021,67547.0,67528.0,0.05997745]
[1772908538514,0.106259,67543.0,67529.0,0.00132]
[1772908538692,0.02370655,67540.0,67530.0,0.07404116]
[1772908539634,0.02370655,67540.0,67529.0,0.0740412]
[1772908539778,0.02370655,67540.0,67524.0,0.0002]
[1772908539779,0.106259,67539.0,67525.0,0.07404564]
[1772908539985,0.02370655,67537.0,67526.0,0.00132]
[1772908540168,0.02370655,67537.0,67527.0,0.00132]
[1772908541019,0.098074,67536.0,67528.0,0.07404335]
[1772908541444,0.1802881,67541.0,67528.0,0.07404335]
[1772908541445,0.0740291,67541.0,67528.0,0.07404335]
[1772908541946,0.02403942,67540.0,67528.0,0.07404335]
[1772908542505,0.02403942,67540.0,67529.0,0.00132]
[1772908543036,0.0740313,67539.0,67529.0,0.07536199]
[1772908543237,0.09807072,67539.0,67529.0,0.07536199]
[1772908543679,0.09807072,67539.0,67529.0,0.00132]
[1772908544022,0.09807072,67539.0,67529.0,0.07536216]
[1772908545040,0.0740291,67544.0,67529.0,0.07536216]
[1772908545255,0.02403942,67542.0,67529.0,0.07536216]
[1772908547269,0.02403942,67540.0,67529.0,0.07536216]
[1772908548023,0.02403942,67540.0,67529.0,0.075362]
[1772908548764,0.02403942,67540.0,67529.0,0.00132]
[1772908549146,0.0740313,67539.0,67529.0,0.00132]
[1772908549346,0.0740313,67539.0,67529.0,0.07536212]
[1772908549347,0.09807072,67539.0,67529.0,0.07536212]
[1772908549667,0.02403942,67538.0,67529.0,0.00132]
[1772908550246,0.02403942,67538.0,67529.0,0.07536205]
[1772908550643,0.02403942,67538.0,67529.0,0.00132]
[1772908550979,0.02403942,67538.0,67529.0,0.07536218]
[1772908551363,0.07403349,67537.0,67529.0,0.00132]
[1772908551738,0.02403942,67536.0,67527.0,0.00035]
[1772908551937,0.02403942,67536.0,67528.0,0.00132]
[1772908553572,0.0980751,67535.0,67528.0,0.00132]
[1772908553759,0.02403942,67534.0,67528.0,0.00132]
[1772908555783,0.02403942,67532.0,67527.0,0.00035]
[1772908555990,0.02403942,67532.0,67528.0,0.00132]
[1772908556708,0.02403942,67532.0,67529.0,0.00132]
[1772908556863,0.02403942,67530.0,67519.0,0.0002]
[1772908557058,0.02403942,67526.0,67515.0,0.07405705]
[1772908557276,0.02403942,67524.0,67516.0,0.00132]
[1772908557676,0.02403942,67524.0,67514.0,0.0002]
[1772908557677,0.02403942,67521.0,67514.0,0.0002]
[1772908557877,0.02403942,67520.0,67514.0,0.0002]
[1772908558102,0.02403942,67520.0,67515.0,0.00132]
[1772908558681,0.106259,67519.0,67516.0,0.00132]
[1772908559005,0.02403942,67518.0,67516.0,0.00132]
[1772908559174,0.02403942,67518.0,67514.0,0.00060031]
[1772908559376,0.02403942,67518.0,67515.0,0.00132]
[1772908559576,0.02403942,67518.0,67514.0,0.00060031]
[1772908559789,0.09809484,67517.0,67516.0,0.00132]
[1772908560001,0.09809484,67517.0,67499.0,0.07407491]
[1772908560002,0.02403942,67516.0,67499.0,0.07407491]
[1772908560367,0.09554559,67512.0,67502.0,0.00132]
[1772908560638,0.02403942,67510.0,67502.0,0.00132]
[1772908560841,0.02403942,67510.0,67500.0,0.0004]
[1772908561053,0.02403942,67509.0,67503.0,0.00132]
[1772908561444,0.02403942,67509.0,67504.0,0.00132]
[1772908562007,0.02403942,67507.0,67505.0,0.00132]
[1772908562551,0.07406529,67508.0,67487.0,0.07408833]
[1772908562552,0.02403942,67505.0,67487.0,0.07408833]
[1772908562723,0.07406529,67508.0,67485.0,0.07408983]
[1772908562724,0.12297268,67501.0,67493.0,0.00132]
[1772908563056,0.02403942,67500.0,67493.0,0.00132]
[1772908563278,0.02403942,67500.0,67488.0,0.07408696]
[1772908563464,0.07406529,67508.0,67494.0,0.00132]
[1772908563630,0.02403942,67515.0,67495.0,0.10002822]
[1772908563853,0.02403942,67514.0,67495.0,0.10002822]
[1772908564055,0.04382756,67510.0,67494.0,0.07540059]
[1772908564256,0.09893326,67507.0,67495.0,0.00132]
[1772908564455,0.02403942,67506.0,67495.0,0.00132]
[1772908564757,0.02403942,67506.0,67495.0,0.00232]
[1772908565161,0.02403942,67506.0,67495.0,0.00132]
[1772908565652,0.02403942,67512.0,67496.0,0.10002822]
[1772908566159,0.074062,67511.0,67497.0,0.07407736]
[1772908566355,0.02403942,67510.0,67497.0,0.07407736]
[1772908566960,0.02403942,67510.0,67498.0,0.00132]
[1772908568960,0.02403942,67508.0,67499.0,0.00132]
[1772908570894,0.07406639,67507.0,67494.0,0.0002]
[1772908571041,0.09810581,67507.0,67500.0,0.00132]
[1772908571442,0.07406639,67507.0,67494.0,0.0002]
[1772908571639,0.02403942,67506.0,67494.0,0.0002]
[1772908571883,0.02403942,67502.0,67486.0,0.07408934]
[1772908572090,0.09893326,67500.0,67488.0,0.00132]
[1772908572298,0.02403942,67497.0,67489.0,0.00132]
[1772908572708,0.02403942,67497.0,67487.0,0.0002]
[1772908573035,0.02403942,67496.0,67488.0,0.00132]
[1772908573369,0.02403942,67496.0,67489.0,0.00132]
[1772908573581,0.02403942,67496.0,67487.0,0.07428807]
[1772908573782,0.07407842,67497.0,67488.0,0.00132]
[1772908574018,0.07407689,67498.0,67488.0,0.00132]
[1772908574216,0.07407689,67498.0,67488.0,0.10134822]
[1772908574914,0.07392689,67498.0,67488.0,0.00132]
[1772908575118,0.09811568,67500.0,67488.0,0.07540685]
[1772908576740,0.09811568,67500.0,67488.0,0.07540723]
[1772908577085,0.07407626,67500.0,67488.0,0.0754064]
[1772908577290,0.09811568,67500.0,67488.0,0.0754064]
[1772908577498,0.02403942,67499.0,67488.0,0.0754064]
[1772908578346,0.07406728,67507.0,67488.0,0.0754064]
[1772908578347,0.07406281,67511.0,67488.0,0.0754064]
[1772908578570,0.07405981,67514.0,67489.0,0.10002822]
[1772908578784,0.02403942,67513.0,67489.0,0.10002822]
[1772908579282,0.02403942,67511.0,67491.0,0.09782399]
[1772908579628,0.00022001,67514.0,67491.0,0.09782399]
[1772908579875,0.02403942,67513.0,67491.0,0.09782399]
[1772908580170,0.02403942,67513.0,67492.0,0.00132]
[1772908580469,0.02403942,67513.0,67493.0,0.10002822]
[1772908580979,0.02403942,67513.0,67494.0,0.10002822]
[1772908581160,0.09893326,67511.0,67495.0,0.07407956]
[1772908581329,0.02403942,67510.0,67495.0,0.07407956]
[1772908581525,0.02403942,67510.0,67496.0,0.00132]
[1772908581749,0.09893326,67509.0,67497.0,0.00132]
[1772908581945,0.02403942,67506.0,67493.0,0.07408132]
[1772908582185,0.02403942,67505.0,67494.0,0.00132]
[1772908582476,0.02403942,67504.0,67495.0,0.00132]
[1772908582634,0.02403942,67504.0,67491.0,0.07408346]
[1772908582836,0.02403942,67502.0,67492.0,0.00132]
[1772908583234,0.02403942,67500.0,67489.0,0.07428606]
[1772908583434,0.02403942,67500.0,67489.0,0.0002]
[1772908583830,0.02403942,67500.0,67490.0,0.00132]
[1772908585288,0.07407517,67499.0,67490.0,0.00132]
[1772908585468,0.09811459,67499.0,67490.0,0.00132]
[1772908586309,0.14596721,67505.0,67490.0,0.00132]
[1772908586510,0.07445907,67516.0,67492.0,0.10002822]
[1772908586707,0.00040196,67516.0,67492.0,0.10002822]
[1772908587160,0.00040196,67516.0,67493.0,0.07408175]
[1772908587300,0.00040196,67516.0,67494.0,0.10002822]
[1772908588138,0.0980916,67520.0,67494.0,0.10002822]
[1772908588298,0.09817492,67520.0,67494.0,0.10002822]
[1772908588837,0.09817492,67520.0,67495.0,0.10002822]
[1772908589039,0.09817492,67520.0,67497.0,0.10002822]
[1772908589240,0.00022001,67514.0,67499.0,0.10002822]
[1772908590145,0.09817492,67520.0,67499.0,0.10002822]
[1772908590340,0.02403942,67519.0,67499.0,0.10002822]
[1772908591249,0.07405432,67518.0,67500.0,0.07407407]
[1772908591458,0.09694765,67518.0,67501.0,0.10002822]
[1772908591623,0.09694765,67518.0,67502.0,0.10134822]
[1772908592611,0.02304107,67518.0,67502.0,0.10134822]
[1772908593767,0.09549653,67517.0,67495.0,0.07407956]
[1772908593913,0.02304107,67514.0,67495.0,0.1771799]
[1772908594112,0.02304107,67514.0,67497.0,0.10310034]
[1772908595415,0.02304107,67514.0,67498.0,0.00132]
[1772908595620,0.07405518,67518.0,67498.0,0.00132]
[1772908595621,0.07405518,67518.0,67499.0,0.10310034]
[1772908595816,0.07405518,67518.0,67500.0,0.07407407]
[1772908596160,0.02304107,67514.0,67501.0,0.00132]
[1772908596366,0.02304107,67513.0,67501.0,0.00132]